bitfinex/quotes_SOLUSD_20251126
["timestamp","ask_amount","ask_price","bid_price","bid_amount"]
[1764159353668,3.26,136.18,136.12,7.7966593]
[1764159353881,3.26,136.18,136.1,4.7366593]
[1764159353882,4.5366593,136.16,136.1,4.7366593]
[1764159354186,4.5366593,136.15,136.1,0.48432314]
[1764159354484,7.7966593,136.15,136.1,0.2]
[1764159354678,0.66,136.14,136.1,0.2]
[1764159354872,0.66,136.14,136.1,0.48432314]
[1764159355054,3.92,136.15,136.1,0.48432314]
[1764159355253,3.92,136.15,136.1,0.2]
[1764159355460,0.66,136.14,136.1,0.34216157]
[1764159355882,0.66,136.14,136.1,0.48432314]
[1764159356078,0.66,136.14,136.1,0.2]
[1764159356479,8.80994492,136.13,136.1,62.1]
[1764159356966,0.66,136.12,136.1,62.1]
[1764159357172,12.06994492,136.11,136.1,62.1]
[1764159357479,17.26660422,136.11,136.1,62.1]
[1764159358285,17.26660422,136.11,136.1,0.2]
[1764159358658,24.78912981,136.11,136.1,0.2]
[1764159359362,29.62441373,136.11,136.1,0.2]
[1764159360189,24.78912981,136.11,136.1,0.2]
[1764159360366,16.968864,136.13,136.1,0.2]
[1764159360561,24.78912981,136.12,136.1,0.2]
[1764159360871,20.86912981,136.11,136.1,0.2]
[1764159361070,8.80994492,136.11,136.1,0.2]
[1764159361269,21.52912981,136.11,136.1,0.2]
[1764159361476,12.71918489,136.15,136.1,0.2]
[1764159361676,12.06994492,136.14,136.1,0.2]
[1764159362196,20.86912981,136.12,136.1,0.2]
[1764159362372,24.78912981,136.11,136.1,0.2]
[1764159368478,25.07345295,136.11,136.1,0.2]
[1764159368695,8.80994492,136.1,136.09,0.2]
[1764159368900,38.45947837,136.1,136.09,0.2]
[1764159369084,16.308864,136.08,136.07,62.0]
[1764159369280,40.43799381,136.08,136.07,0.1]
[1764159369492,41.14799381,136.08,136.05,2.20963385]
[1764159369694,20.86912981,136.06,136.05,2.20963385]
[1764159369897,8.80994492,136.06,136.05,2.20963385]
[1764159370201,21.57912981,136.06,136.05,2.20963385]
[1764159370937,21.57912981,136.06,136.05,1.48963385]
[1764159371081,16.308864,136.04,136.03,0.1]
[1764159371275,25.71879679,136.04,136.03,0.1]
[1764159371584,28.99880892,136.04,136.03,0.1]
[1764159371800,25.11880892,136.04,136.03,0.1]
[1764159371979,40.43799381,136.04,136.03,0.1]
[1764159372175,28.37880892,136.04,136.03,0.1]
[1764159372379,28.37880892,136.04,136.03,0.8]
[1764159372623,19.568864,136.04,136.03,0.8]
[1764159373126,28.36804889,136.07,136.03,0.8]
[1764159373422,24.12912981,136.06,136.03,0.8]
[1764159373622,3.26,136.05,136.03,0.8]
[1764159374693,3.26,136.07,136.03,0.8]
[1764159374891,25.11880892,136.06,136.03,0.8]
[1764159375094,37.17799381,136.06,136.03,0.8]
[1764159375714,20.86912981,136.04,136.03,0.1]
[1764159375887,24.12912981,136.04,136.03,0.1]
[1764159376087,12.06994492,136.04,136.03,62.72]
[1764159376285,12.06994492,136.04,136.03,0.1]
[1764159376605,24.12912981,136.04,136.03,0.1]
[1764159376797,12.06994492,136.04,136.03,0.82]
[1764159377797,3.26,136.04,136.03,0.82]
[1764159378205,24.12912981,136.04,136.03,0.1]
[1764159378617,40.43799381,136.04,136.03,0.1]
[1764159380613,35.31050181,136.04,136.03,0.1]
[1764159381197,35.31050181,136.04,136.03,0.82]
[1764159381399,28.37880892,136.04,136.03,0.82]
[1764159382201,19.568864,136.04,136.03,62.72]
[1764159382422,3.26,136.04,136.03,62.72]
[1764159382585,3.28,136.06,136.03,62.72]
[1764159382922,3.28,136.06,136.04,0.72]
[1764159383416,3.28,136.06,136.03,62.0]
[1764159383417,8.80994492,136.05,136.03,62.0]
[1764159383588,8.80994492,136.05,136.03,62.72]
[1764159384004,8.80994492,136.05,136.03,62.0]
[1764159384312,8.80994492,136.05,136.04,0.72]
[1764159384704,8.80994492,136.05,136.03,62.0]
[1764159385020,15.74163781,136.05,136.03,62.72]
[1764159385514,8.80994492,136.05,136.03,62.72]
[1764159386109,15.74163781,136.04,136.03,62.0]
[1764159386613,15.74163781,136.04,136.03,0.1]
[1764159386816,6.93169289,136.04,136.03,0.1]
[1764159388322,15.74163781,136.04,136.03,62.0]
[1764159390513,8.80994492,136.04,136.03,62.0]
[1764159390823,15.74163781,136.04,136.03,62.72]
[1764159391119,15.74163781,136.04,136.03,62.0]
[1764159391317,16.36163781,136.04,136.03,62.0]
[1764159391913,16.36163781,136.04,136.03,0.1]
[1764159392516,21.1851546,136.04,136.03,0.1]
[1764159393218,20.5651546,136.04,136.03,0.1]
[1764159393808,20.5651546,136.04,136.03,0.82]
[1764159394119,20.5651546,136.04,136.03,0.1]
[1764159394327,21.46947774,136.04,136.03,0.1]
[1764159394527,29.83919219,136.04,136.03,0.1]
[1764159394705,54.56866993,136.04,136.03,0.1]
[1764159395107,60.6522453,136.04,136.03,0.1]
[1764159395908,46.83759397,136.04,136.03,0.1]
[1764159396320,8.80994492,136.03,135.99,0.72]
[1764159396627,6.93169289,136.01,136.0,0.72]
[1764159396928,4.82351679,136.01,136.0,0.72]
[1764159397330,8.80994492,136.0,135.98,62.72]
[1764159397624,8.10351679,135.99,135.98,0.1]
[1764159397929,3.28,135.99,135.98,0.1]
[1764159398119,3.28,135.99,135.98,0.82]
[1764159398323,15.05894292,135.99,135.98,0.82]
[1764159398821,8.12725003,135.99,135.98,0.82]
[1764159399753,4.84725003,135.99,135.98,62.72]
[1764159399926,10.21169289,136.02,135.98,62.72]
[1764159400130,4.85488616,136.01,135.99,0.72]
[1764159400422,4.85863793,136.0,135.99,0.72]
[1764159401149,11.79033082,136.0,135.99,0.72]
[1764159401345,11.79033082,136.0,135.98,62.0]
[1764159401637,6.93169289,136.0,135.99,0.72]
[1764159401836,8.14260648,136.0,135.99,0.72]
[1764159403136,4.86260648,136.0,135.99,0.72]
[1764159403452,3.28,136.02,135.99,0.72]
[1764159404926,6.93108255,136.04,135.99,0.72]
[1764159405119,4.867163,136.03,135.99,7.65108255]
[1764159405327,8.14807621,136.06,136.0,6.93108255]
[1764159405519,3.28,136.06,136.01,0.71]
[1764159405717,3.28,136.06,136.02,6.93108255]
[1764159406222,3.28,136.06,136.03,0.71]
[1764159407122,6.04928645,136.13,136.03,0.71]
[1764159407319,6.93108255,136.08,136.03,0.71]
[1764159407518,3.28,136.09,136.03,7.64108255]
[1764159407714,3.28,136.09,136.04,6.93108255]
[1764159407943,3.28,136.09,136.04,7.64108255]
[1764159408131,3.28,136.09,136.05,0.71]
[1764159411225,6.93108255,136.11,136.05,0.71]
[1764159411451,6.93108255,136.11,136.05,62.61]
[1764159411635,6.93108255,136.11,136.06,0.71]
[1764159411941,3.28,136.12,136.06,0.71]
[1764159412748,3.28,136.12,136.06,7.64108255]
[1764159413250,3.28,136.12,136.07,0.71]
[1764159414349,10.21108255,136.12,136.07,0.71]
[1764159415149,8.80994492,136.15,136.08,6.93108255]
[1764159415334,19.02102747,136.15,136.08,68.83108255]
[1764159415523,19.02102747,136.15,136.09,0.71]
[1764159415724,12.08994492,136.15,136.09,0.71]
[1764159416044,3.28,136.15,136.09,7.64108255]
[1764159416433,3.28,136.15,136.1,0.71]
[1764159416628,3.28,136.15,136.1,171.74108255]
[1764159416824,7.13108255,136.19,136.12,6.93108255]
[1764159417247,6.93108255,136.18,136.13,0.71]
[1764159418326,6.93108255,136.17,136.13,0.71]
[1764159418730,6.93108255,136.18,136.13,0.71]
[1764159420349,6.93108255,136.17,136.13,0.71]
[1764159420653,6.93108255,136.18,136.13,0.71]
[1764159421948,9.00994492,136.19,136.13,0.71]
[1764159422133,15.94102747,136.19,136.13,0.71]
[1764159422333,6.93108255,136.18,136.13,0.71]
[1764159424155,6.93108255,136.17,136.13,0.71]
[1764159424461,6.93108255,136.16,136.13,0.71]
[1764159424760,2.90594018,136.16,136.13,62.61]
[1764159424964,2.90594018,136.18,136.13,62.61]
[1764159425169,11.9158851,136.19,136.14,0.65]
[1764159425327,11.9158851,136.19,136.14,62.55]
[1764159425530,9.00994492,136.19,136.14,62.55]
[1764159425734,0.2,136.19,136.15,0.65]
[1764159425935,0.2,136.19,136.15,62.83432314]
[1764159426168,0.2,136.19,136.16,0.65]
[1764159426873,0.2,136.19,136.16,65.45594018]
[1764159427071,0.2,136.19,136.17,0.93432314]
[1764159427244,0.2,136.23,136.19,0.28432314]
[1764159427570,0.2,136.23,136.2,0.65]
[1764159429080,6.90820612,136.22,136.18,0.65]
[1764159429258,6.90820612,136.22,136.19,0.65]
[1764159429654,6.90820612,136.21,136.16,0.28432314]
[1764159429873,6.90820612,136.2,136.16,0.65]
[1764159430182,6.90820612,136.19,136.16,0.65]
[1764159431161,15.71815104,136.21,136.16,0.65]
[1764159431956,15.71815104,136.22,136.16,0.65]
[1764159432284,6.90820612,136.21,136.16,0.65]
[1764159433277,6.90820612,136.2,136.16,62.55]
[1764159433452,23.21707012,136.19,136.16,62.55]
[1764159433785,16.308864,136.19,136.17,0.65]
[1764159435091,16.308864,136.19,136.16,61.9]
[1764159435253,23.21707012,136.19,136.16,62.61]
[1764159435457,6.90820612,136.18,136.16,61.9]
[1764159435857,16.978864,136.19,136.16,61.9]
[1764159435858,6.90820612,136.17,136.16,61.9]
[1764159436166,6.90820612,136.18,136.16,61.9]
[1764159436477,6.90820612,136.18,136.16,62.61]
[1764159436861,23.21707012,136.19,136.16,62.61]
[1764159438382,23.21707012,136.19,136.16,61.9]
[1764159438588,23.88707012,136.19,136.16,61.9]
[1764159438807,16.308864,136.19,136.16,61.9]
[1764159439089,0.2,136.23,136.17,7.90252926]
[1764159439289,6.90820612,136.22,136.17,164.81]
[1764159439460,6.90820612,136.22,136.18,0.71]
[1764159439658,0.2,136.23,136.21,0.28432314]
[1764159439861,0.2,136.23,136.21,0.71]
[1764159440174,6.90820612,136.22,136.18,0.71]
[1764159440560,12.03542861,136.22,136.18,0.71]
[1764159440972,24.30537353,136.23,136.18,0.71]
[1764159441686,0.2,136.23,136.18,0.71]
[1764159442158,12.23542861,136.23,136.18,0.71]
[1764159442865,0.2,136.23,136.18,0.71]
[1764159443074,0.2,136.23,136.19,0.28432314]
[1764159443388,0.2,136.23,136.19,12.31975175]
[1764159443564,0.2,136.23,136.2,0.71]
[1764159443893,0.2,136.23,136.21,0.28432314]
[1764159444100,0.2,136.23,136.2,0.71]
[1764159444284,0.2,136.23,136.21,0.71]
[1764159445275,0.2,136.23,136.19,0.99432314]
[1764159445480,12.03542861,136.22,136.19,61.9]
[1764159446084,12.03542861,136.22,136.19,62.61]
[1764159446282,16.16542861,136.23,136.19,62.61]
[1764159446715,12.03542861,136.22,136.19,62.61]
[1764159447184,12.70542861,136.22,136.19,61.9]
[1764159447500,12.03542861,136.22,136.19,61.9]
[1764159447678,15.49542861,136.23,136.2,0.71]
[1764159448176,12.70542861,136.22,136.19,61.9]
[1764159448598,5.20682769,136.22,136.19,61.9]
[1764159448899,21.81263908,136.21,136.14,0.71]
[1764159449078,4.53682769,136.19,136.13,0.28432314]
[1764159449399,4.53682769,136.19,136.13,4.53682769]
[1764159449730,4.83794325,136.2,136.14,0.99432314]
[1764159449731,9.37477094,136.2,136.14,0.99432314]
[1764159450210,4.53682769,136.19,136.15,0.71]
[1764159450722,12.04153187,136.19,136.15,62.61]
[1764159451002,25.78880892,136.21,136.16,0.71]
[1764159451175,12.04153187,136.19,136.16,0.71]
[1764159451893,29.02039587,136.2,136.16,0.71]
[1764159452072,19.568864,136.2,136.16,0.71]
[1764159452399,4.84823927,136.19,136.16,0.71]
[1764159452589,32.28039587,136.2,136.16,0.71]
[1764159452790,4.84823905,136.19,136.16,0.71]
[1764159452985,32.28039587,136.2,136.16,0.71]
[1764159453299,4.84823868,136.19,136.16,0.71]
[1764159453490,31.61039587,136.2,136.16,0.71]
[1764159453692,4.85021351,136.19,136.16,0.71]
[1764159453891,31.61039587,136.2,136.16,0.71]
[1764159454101,4.85067986,136.19,136.16,0.71]
[1764159454294,12.04153187,136.19,136.16,62.61]
[1764159454691,31.61039587,136.2,136.16,62.61]
[1764159454889,4.85369106,136.19,136.16,62.61]
[1764159455090,19.568864,136.2,136.17,0.71]
[1764159455394,3.46,136.23,136.17,0.99432314]
[1764159455589,4.85732214,136.22,136.17,62.89432314]
[1764159455909,15.50153187,136.23,136.18,0.71]
[1764159456078,12.04153187,136.21,136.18,0.71]
[1764159456283,12.04153187,136.2,136.17,61.9]
[1764159456500,12.04153187,136.2,136.17,0.71]
[1764159456700,15.30153187,136.2,136.17,0.71]
[1764159457082,12.04153187,136.22,136.17,0.71]
[1764159457590,12.04153187,136.21,136.17,0.71]
[1764159457789,16.90374812,136.2,136.17,0.71]
[1764159457987,12.04153187,136.2,136.15,0.28432314]
[1764159458308,12.04153187,136.17,136.13,0.71]
[1764159459111,15.30153187,136.18,136.13,0.71]
[1764159459710,15.97153187,136.18,136.13,0.71]
[1764159460008,3.26,136.18,136.13,0.99432314]
[1764159460210,3.26,136.18,136.13,13.03585501]
[1764159460417,3.26,136.18,136.14,0.71]
[1764159461086,16.308864,136.2,136.15,0.28432314]
[1764159461389,24.11147679,136.21,136.15,62.18432314]
[1764159461588,24.11147679,136.21,136.16,0.71]
[1764159461589,4.87088843,136.2,136.16,0.71]
[1764159461915,24.11147679,136.21,136.16,62.61]
[1764159462108,4.86987913,136.2,136.16,62.61]
[1764159462305,8.80994492,136.21,136.17,0.71]
[1764159462628,3.26,136.22,136.17,0.99432314]
[1764159463127,0.67,136.21,136.18,16.308864]
[1764159463328,12.71153187,136.21,136.18,16.308864]
[1764159463497,12.71153187,136.21,136.17,0.71]
[1764159463829,12.04153187,136.21,136.17,0.71]
[1764159463992,3.26,136.22,136.17,0.71]
[1764159464713,3.26,136.22,136.18,0.28432314]
[1764159465217,3.26,136.22,136.19,0.68]
[1764159465394,0.2,136.23,136.19,0.68]
[1764159465589,0.2,136.23,136.2,0.28432314]
[1764159465791,0.2,136.23,136.21,0.68]
[1764159466110,0.2,136.23,136.22,0.28432314]
[1764159466717,0.2,136.23,136.22,0.96432314]
[1764159467212,0.2,136.23,136.22,13.00585501]
[1764159468313,0.2,136.23,136.22,0.68]
[1764159469306,0.2,136.23,136.22,13.00585501]
[1764159469516,0.2,136.23,136.22,0.96432314]
[1764159471117,16.17153187,136.28,136.23,61.7]
[1764159471118,12.71153187,136.26,136.23,61.7]
[1764159471809,12.04153187,136.26,136.23,61.7]
[1764159472009,12.71153187,136.26,136.23,61.7]
[1764159472204,0.67,136.25,136.23,61.7]
[1764159472399,0.2,136.28,136.23,61.7]
[1764159472613,15.30153187,136.27,136.23,62.38]
[1764159473006,15.97153187,136.27,136.23,62.38]
[1764159473918,0.67,136.26,136.23,61.7]
[1764159474095,12.71153187,136.26,136.23,61.7]
[1764159474297,12.04153187,136.26,136.23,61.7]
[1764159474533,12.04153187,136.26,136.23,62.38]
[1764159475211,12.71153187,136.26,136.21,0.96432314]
[1764159475599,0.67,136.25,136.21,0.96432314]
[1764159476014,12.71153187,136.25,136.21,0.96432314]
[1764159476404,12.71153187,136.24,136.19,62.38]
[1764159476603,12.71153187,136.24,136.19,0.68]
[1764159476825,12.71153187,136.24,136.2,0.68]
[1764159477519,0.67,136.24,136.2,0.68]
[1764159478111,12.71153187,136.24,136.19,0.28432314]
[1764159478310,12.71153187,136.24,136.19,0.96432314]
[1764159478526,0.67,136.23,136.19,0.96432314]
[1764159479215,12.71153187,136.23,136.19,0.96432314]
[1764159479416,20.85147679,136.22,136.16,62.38]
[1764159479614,15.97153187,136.23,136.17,0.82216157]
[1764159479815,15.30153187,136.23,136.17,0.96432314]
[1764159480008,15.30153187,136.23,136.18,0.96432314]
[1764159480415,15.30153187,136.23,136.19,0.68]
[1764159480616,15.97153187,136.23,136.19,0.68]
[1764159481013,12.04153187,136.21,136.16,0.68]
[1764159481252,12.04153187,136.2,136.16,0.68]
[1764159481728,0.67,136.21,136.16,0.68]
[1764159481931,12.71153187,136.21,136.16,0.68]
[1764159482726,16.308864,136.22,136.18,0.14216157]
[1764159482927,16.308864,136.22,136.18,12.18369344]
[1764159483120,16.308864,136.22,136.19,0.68]
[1764159483435,16.308864,136.22,136.19,62.38]
[1764159484303,16.308864,136.22,136.2,0.68]
[1764159484510,9.47994492,136.25,136.2,62.38]
[1764159484820,12.91153187,136.28,136.2,164.58]
[1764159485018,12.04153187,136.27,136.22,0.28432314]
[1764159485636,12.04153187,136.27,136.23,0.66]
[1764159485805,12.91153187,136.28,136.23,62.36]
[1764159486309,12.04153187,136.27,136.23,62.36]
[1764159486509,12.04153187,136.26,136.23,61.7]
[1764159486726,12.71153187,136.26,136.23,61.7]
[1764159487522,12.04153187,136.26,136.23,61.7]
[1764159488034,12.04153187,136.26,136.23,62.36]
[1764159488823,0.87,136.28,136.23,61.7]
[1764159489030,9.00994492,136.28,136.24,0.66]
[1764159489724,9.00994492,136.28,136.24,62.36]
[1764159490041,21.72147679,136.28,136.24,62.36]
[1764159490341,12.71153187,136.27,136.24,61.7]
[1764159492235,21.05147679,136.28,136.24,62.36]
[1764159492446,21.72147679,136.28,136.24,62.36]
[1764159492620,14.2125927,136.28,136.24,62.36]
[1764159493022,4.53264778,136.27,136.24,62.36]
[1764159493643,9.67994492,136.28,136.24,62.36]
[1764159493840,4.53264778,136.27,136.24,62.36]
[1764159494039,9.67994492,136.28,136.24,62.36]
[1764159494220,4.53264778,136.27,136.24,62.36]
[1764159494541,4.53264778,136.27,136.24,61.7]
[1764159494848,4.53264778,136.27,136.24,62.36]
[1764159495020,4.53264778,136.25,136.24,61.7]
[1764159496746,8.46264778,136.26,136.24,61.7]
[1764159497443,7.79264778,136.26,136.24,61.7]
[1764159498344,4.53264778,136.25,136.24,61.7]
[1764159498564,8.80994492,136.22,136.18,62.36]
[1764159498723,4.53264778,136.2,136.18,62.36]
[1764159498918,4.53264778,136.2,136.15,64.96]
[1764159499169,4.53264778,136.2,136.16,0.66]
[1764159499465,4.53264778,136.19,136.16,0.66]
[1764159499634,4.53264778,136.19,136.16,62.36]
[1764159499835,4.53264778,136.18,136.16,61.7]
[1764159500668,7.5870683,136.17,136.13,61.7]
[1764159500855,6.9170683,136.17,136.13,62.36]
[1764159501062,6.9170683,136.18,136.14,0.66]
[1764159502469,23.2259323,136.18,136.14,0.66]
[1764159503573,6.9170683,136.18,136.14,0.66]
[1764159504864,6.9170683,136.18,136.14,62.36]
[1764159505460,7.5870683,136.18,136.14,62.36]
[1764159505971,6.9170683,136.18,136.15,0.66]
[1764159506262,10.1770683,136.19,136.15,62.36]
[1764159506670,10.1770683,136.19,136.16,0.66]
[1764159506871,10.1770683,136.19,136.16,62.36]
[1764159507237,15.72701322,136.21,136.17,0.66]
[1764159507654,3.26,136.22,136.17,0.66]
[1764159507870,6.9170683,136.21,136.17,62.36]
[1764159508256,6.9170683,136.21,136.18,0.66]
[1764159508470,16.308864,136.21,136.18,0.66]
[1764159508672,10.1770683,136.22,136.18,62.36]
[1764159509047,6.9170683,136.21,136.19,0.66]
[1764159510174,6.9170683,136.21,136.18,61.7]
[1764159510341,6.9170683,136.21,136.18,62.36]
[1764159510744,6.9170683,136.21,136.19,0.66]
[1764159511270,6.9170683,136.21,136.19,61.7]
[1764159511457,3.26,136.22,136.2,0.66]
[1764159511643,3.26,136.22,136.2,62.36]
[1764159512061,10.1770683,136.22,136.2,62.36]
[1764159512260,10.1770683,136.22,136.21,0.66]
[1764159512261,3.26,136.22,136.21,0.66]
[1764159512472,6.9170683,136.24,136.21,0.66]
[1764159513160,10.1770683,136.25,136.21,0.66]
[1764159513351,10.1770683,136.25,136.21,62.36]
[1764159513756,10.1770683,136.25,136.22,0.66]
[1764159515655,3.26,136.25,136.22,0.66]
[1764159515979,9.18359962,136.25,136.22,62.36]
[1764159517465,2.26653132,136.25,136.22,62.36]
[1764159517779,9.18359962,136.25,136.22,62.36]
[1764159517980,6.9170683,136.23,136.22,61.7]
[1764159518776,11.07647624,136.25,136.22,61.7]
[1764159519080,6.9170683,136.24,136.22,61.7]
[1764159520174,11.74647624,136.25,136.22,61.7]
[1764159520377,7.5870683,136.24,136.22,61.7]
[1764159520582,6.9170683,136.23,136.22,61.7]
[1764159520780,7.5870683,136.24,136.22,61.7]
[1764159521463,6.9170683,136.24,136.22,61.7]
[1764159522464,2.26653132,136.25,136.22,62.36]
[1764159522675,11.07647624,136.25,136.23,0.66]
[1764159522982,2.26653132,136.25,136.23,0.66]
[1764159523483,19.21090483,136.26,136.23,0.66]
[1764159523685,19.21090483,136.26,136.23,62.36]
[1764159523686,16.308864,136.26,136.23,62.36]
[1764159523983,19.21090483,136.26,136.23,62.37]
[1764159524581,2.90204083,136.25,136.23,61.7]
[1764159524756,19.21090483,136.24,136.23,61.7]
[1764159524952,16.308864,136.24,136.23,61.7]
[1764159525376,31.96084975,136.24,136.2,61.7]
[1764159525578,31.96084975,136.24,136.2,62.37]
[1764159526263,3.58204083,136.23,136.2,62.37]
[1764159526756,2.90204083,136.23,136.2,62.37]
[1764159526957,15.65198575,136.24,136.2,62.37]
[1764159527278,12.06994492,136.24,136.21,0.67]
[1764159527486,14.97198575,136.24,136.21,0.67]
[1764159527658,6.16204083,136.24,136.21,0.67]
[1764159528282,6.16204083,136.24,136.21,62.37]
[1764159528662,6.84204083,136.24,136.21,61.7]
[1764159528863,2.90204083,136.23,136.21,61.7]
[1764159529080,19.21090483,136.22,136.21,61.7]
[1764159529273,19.89090483,136.22,136.21,61.7]
[1764159529582,19.89090483,136.22,136.17,0.67]
[1764159529583,8.80994492,136.21,136.17,62.37]
[1764159529776,2.90204083,136.2,136.17,62.37]
[1764159530682,14.97198575,136.21,136.18,0.67]
[1764159530880,6.16204083,136.21,136.18,0.67]
[1764159531075,3.26,136.21,136.18,0.67]
[1764159533759,6.16204083,136.21,136.18,0.67]
[1764159534259,6.16204083,136.21,136.17,61.7]
[1764159534260,6.84204083,136.21,136.17,62.37]
[1764159534579,6.84204083,136.21,136.13,62.37]
[1764159534580,19.21090483,136.18,136.13,62.37]
[1764159534775,2.90204083,136.17,136.13,62.37]
[1764159534973,8.80994492,136.16,136.11,0.67]
[1764159535170,9.48994492,136.16,136.11,0.67]
[1764159535491,2.90204083,136.15,136.11,0.67]
[1764159535686,2.90204083,136.14,136.11,0.67]
[1764159535905,3.94,136.15,136.11,0.67]
[1764159536211,2.90204083,136.14,136.11,0.67]
[1764159536973,2.90204083,136.14,136.1,62.37]
[1764159537295,2.90204083,136.14,136.11,0.67]
[1764159537671,16.308864,136.13,136.09,65.63]
[1764159537920,16.308864,136.13,136.1,0.67]
[1764159538270,19.21090483,136.13,136.1,0.67]
[1764159538471,2.90204083,136.14,136.1,0.67]
[1764159539277,8.80994492,136.14,136.1,0.67]
[1764159539778,0.68,136.19,136.1,65.91432314]
[1764159539971,11.71198575,136.17,136.1,68.81636397]
[1764159540172,16.308864,136.16,136.12,0.28432314]
[1764159540372,8.80994492,136.16,136.12,61.7]
[1764159540573,2.90204083,136.14,136.12,61.7]
[1764159540785,2.90204083,136.15,136.12,62.37]
[1764159542807,11.71198575,136.13,136.12,61.7]
[1764159543494,8.80994492,136.12,136.09,61.7]
[1764159543694,12.39198575,136.12,136.09,61.7]
[1764159543902,2.90204083,136.11,136.09,61.7]
[1764159544088,11.71198575,136.12,136.09,62.37]
[1764159544292,6.44533592,136.16,136.1,0.67]
[1764159544491,8.80994492,136.15,136.1,65.27204083]
[1764159544905,8.80994492,136.15,136.11,0.67]
[1764159545097,8.80994492,136.15,136.11,62.37]
[1764159545606,8.80994492,136.15,136.12,0.66]
[1764159545794,6.16204083,136.16,136.12,0.66]
[1764159546106,6.16204083,136.16,136.11,61.7]
[1764159546107,12.43198575,136.15,136.11,61.7]
[1764159546427,12.43198575,136.15,136.11,62.36]
[1764159546925,8.80994492,136.15,136.12,0.66]
[1764159547089,11.71198575,136.15,136.12,0.66]
[1764159547285,6.88204083,136.16,136.12,0.66]
[1764159547490,8.80994492,136.15,136.12,0.66]
[1764159548686,8.80994492,136.15,136.11,61.7]
[1764159548687,11.71198575,136.13,136.11,61.7]
[1764159548906,8.80994492,136.13,136.11,61.7]
[1764159549842,12.43198575,136.12,136.08,0.76]
[1764159550023,2.90204083,136.11,136.08,0.76]
[1764159550621,25.11880892,136.12,136.08,0.76]
[1764159550939,16.308864,136.12,136.08,62.46]
[1764159551304,16.308864,136.12,136.09,0.66]
[1764159553742,3.26,136.13,136.09,0.66]
[1764159554217,11.71198575,136.12,136.09,0.66]
[1764159554819,8.80994492,136.12,136.09,0.66]
[1764159555246,8.80994492,136.12,136.09,62.36]
[1764159555842,11.71198575,136.12,136.09,62.36]
[1764159556130,11.71198575,136.11,136.09,61.7]
[1764159556335,2.90204083,136.1,136.09,61.7]
[1764159556643,8.80994492,136.09,136.08,0.1]
[1764159556852,6.16204083,136.1,136.08,0.82]
[1764159557033,6.16204083,136.1,136.08,0.1]
[1764159557752,11.71198575,136.09,136.08,0.1]
[1764159558130,8.80994492,136.09,136.08,0.1]
[1764159558754,11.71198575,136.09,136.08,0.1]
[1764159558947,28.74084975,136.09,136.08,0.1]
[1764159560735,12.43198575,136.09,136.08,0.1]
[1764159561140,15.33402658,136.09,136.08,0.1]
[1764159561339,25.11880892,136.06,136.02,0.1]
[1764159561543,11.71198575,136.03,136.02,0.1]
[1764159562035,12.43198575,136.03,136.02,0.1]
[1764159562230,28.74084975,136.03,136.02,0.1]
[1764159562640,30.38974331,136.03,136.02,0.1]
[1764159562834,14.08087931,136.03,136.02,0.1]
[1764159563045,25.11880892,136.02,135.98,0.1]
[1764159563246,20.85979839,135.99,135.98,0.1]
[1764159563962,30.38974331,135.99,135.98,0.1]
[1764159564157,8.80994492,135.98,135.96,0.1]